[Event "*** Titled Tuesday Blitz"]
[Site "Chess.com"]
[Date "2020.04.14"]
[Round "5"]
[White "biesiadnik"]
[Black "GHANDEEVAM2003"]
[Result "1-0"]
[WhiteElo "2600"]
[BlackElo "2892"]
[TimeControl "180+1"]
[EndTime "10:51:30 PDT"]
[Termination "biesiadnik won by resignation"]

1. e4 {[%clk 0:03:00.9]} 1... e6 {[%clk 0:02:59.7]} 2. d4 {[%clk 0:03:00.6]}
2... d5 {[%clk 0:03:00.6]} 3. e5 {[%clk 0:02:54.7]} 3... c5 {[%clk 0:03:00.1]}
4. c3 {[%clk 0:02:55]} 4... Nc6 {[%clk 0:03:01]} 5. Nf3 {[%clk 0:02:55]} 5...
Qb6 {[%clk 0:03:01.5]} 6. a3 {[%clk 0:02:55.1]} 6... c4 {[%clk 0:03:01.6]} 7.
Nbd2 {[%clk 0:02:53.8]} 7... Na5 {[%clk 0:03:02.2]} 8. Rb1 {[%clk 0:02:54]} 8...
Bd7 {[%clk 0:03:02.8]} 9. Be2 {[%clk 0:02:54.2]} 9... Ne7 {[%clk 0:03:03.3]} 10.
b4 {[%clk 0:02:54.5]} 10... cxb3 {[%clk 0:03:01.9]} 11. Nxb3 {[%clk 0:02:54.8]}
11... Ba4 {[%clk 0:03:01.6]} 12. Nxa5 {[%clk 0:02:54.8]} 12... Bxd1 {[%clk
0:02:35.5]} 13. Rxb6 {[%clk 0:02:54.3]} 13... axb6 {[%clk 0:02:36.4]} 14. Bb5+
{[%clk 0:02:54.1]} 14... Kd8 {[%clk 0:02:37]} 15. Nxb7+ {[%clk 0:02:54.6]} 15...
Kc7 {[%clk 0:02:37.5]} 16. Kxd1 {[%clk 0:02:54.9]} 16... Kxb7 {[%clk 0:02:37.3]}
17. Ng5 {[%clk 0:02:55.2]} 17... Nc6 {[%clk 0:02:20.5]} 18. Nxf7 {[%clk
0:02:55.1]} 18... Rg8 {[%clk 0:02:20.9]} 19. a4 {[%clk 0:02:53]} 19... Be7
{[%clk 0:02:12.4]} 20. Nd6+ {[%clk 0:02:53]} 20... Bxd6 {[%clk 0:02:11.9]} 21.
exd6 {[%clk 0:02:53]} 21... Rgf8 {[%clk 0:02:09.4]} 22. Re1 {[%clk 0:02:45.4]}
22... Rf6 {[%clk 0:01:41.9]} 23. Bg5 {[%clk 0:02:41.8]} 23... Rf5 {[%clk
0:01:38.7]} 24. Bh4 {[%clk 0:02:36.9]} 24... g5 {[%clk 0:01:24.9]} 25. Bg3
{[%clk 0:02:32.4]} 25... Rf6 {[%clk 0:01:25.3]} 26. h4 {[%clk 0:02:20.1]} 26...
g4 {[%clk 0:01:15.5]} 27. Kd2 {[%clk 0:01:17.4]} 27... h5 {[%clk 0:01:05]} 28.
Kd3 {[%clk 0:01:15]} 28... Rd8 {[%clk 0:00:55.6]} 29. c4 {[%clk 0:01:08.1]}
29... dxc4+ {[%clk 0:00:46.7]} 30. Bxc4 {[%clk 0:01:08]} 30... Nb4+ {[%clk
0:00:28]} 31. Kc3 {[%clk 0:01:02.9]} 31... Nd5+ {[%clk 0:00:28.3]} 32. Bxd5+
{[%clk 0:01:02.4]} 32... exd5 {[%clk 0:00:29.2]} 33. Re7+ {[%clk 0:01:01.6]}
33... Ka6 {[%clk 0:00:29]} 34. Rh7 {[%clk 0:00:50.8]} 34... Rf5 {[%clk
0:00:29.2]} 35. Kb4 {[%clk 0:00:41.1]} 35... Rf6 {[%clk 0:00:16.8]} 36. Rxh5
{[%clk 0:00:38.5]} 36... Rd7 {[%clk 0:00:17.3]} 37. Rxd5 {[%clk 0:00:38.2]}
37... Re6 {[%clk 0:00:17.9]} 38. Be5 {[%clk 0:00:37.2]} 38... Rh6 {[%clk
0:00:16.8]} 39. Bg3 {[%clk 0:00:35.4]} 39... Re6 {[%clk 0:00:16.7]} 40. a5
{[%clk 0:00:33.8]} 40... Re1 {[%clk 0:00:15.6]} 41. axb6 {[%clk 0:00:33.7]}
41... Rb1+ {[%clk 0:00:15.6]} 42. Kc3 {[%clk 0:00:34.2]} 42... Kxb6 {[%clk
0:00:15.3]} 43. Rc5 {[%clk 0:00:32.3]} 43... Ra7 {[%clk 0:00:13.6]} 44. Kd3
{[%clk 0:00:31.5]} 44... Re1 {[%clk 0:00:12.5]} 45. Kc4 {[%clk 0:00:31.4]} 45...
Rf7 {[%clk 0:00:10.8]} 46. Kd5 {[%clk 0:00:31]} 46... Rf5+ {[%clk 0:00:10.5]}
47. Be5 {[%clk 0:00:31.3]} 47... Kb7 {[%clk 0:00:04.9]} 48. d7 {[%clk
0:00:31.3]} 48... Rf8 {[%clk 0:00:05.4]} 49. Ke6 {[%clk 0:00:30.9]} 1-0

[Event "*** Titled Tuesday Blitz"]
[Site "Chess.com"]
[Date "2020.04.14"]
[Round "5"]
[White "SGchess01"]
[Black "MergenKakabaev"]
[Result "1-0"]
[WhiteElo "2694"]
[BlackElo "2449"]
[TimeControl "180+1"]
[EndTime "10:51:30 PDT"]
[Termination "SGchess01 won on time"]

1. e4 {[%clk 0:03:00.6]} 1... e5 {[%clk 0:02:58.2]} 2. Nf3 {[%clk 0:03:00.4]}
2... Nc6 {[%clk 0:02:58.1]} 3. Bc4 {[%clk 0:02:58.7]} 3... Nf6 {[%clk
0:02:53.6]} 4. d3 {[%clk 0:02:58.8]} 4... Bc5 {[%clk 0:02:53.3]} 5. O-O {[%clk
0:02:58.3]} 5... d6 {[%clk 0:02:53.5]} 6. c3 {[%clk 0:02:58.2]} 6... a6 {[%clk
0:02:53.1]} 7. Bb3 {[%clk 0:02:58.2]} 7... Ba7 {[%clk 0:02:52.1]} 8. Nbd2 {[%clk
0:02:57.7]} 8... O-O {[%clk 0:02:51.7]} 9. h3 {[%clk 0:02:57.9]} 9... Ne7 {[%clk
0:02:51.5]} 10. Re1 {[%clk 0:02:57.8]} 10... Ng6 {[%clk 0:02:50.6]} 11. Nf1
{[%clk 0:02:58.3]} 11... h6 {[%clk 0:02:51]} 12. d4 {[%clk 0:02:58.6]} 12...
exd4 {[%clk 0:02:45.5]} 13. cxd4 {[%clk 0:02:58.2]} 13... d5 {[%clk 0:02:45.6]}
14. e5 {[%clk 0:02:58.1]} 14... Ne4 {[%clk 0:02:45.8]} 15. N1d2 {[%clk
0:02:52.7]} 15... Bf5 {[%clk 0:02:30.1]} 16. Bc2 {[%clk 0:02:52.2]} 16... Nxd2
{[%clk 0:02:11.4]} 17. Bxd2 {[%clk 0:02:46.6]} 17... Bxc2 {[%clk 0:02:07.6]} 18.
Qxc2 {[%clk 0:02:47.5]} 18... Qd7 {[%clk 0:02:07.8]} 19. Rac1 {[%clk 0:02:34.9]}
19... c6 {[%clk 0:02:06.9]} 20. b4 {[%clk 0:02:03.5]} 20... Rfe8 {[%clk
0:02:02.9]} 21. Qd3 {[%clk 0:02:03.2]} 21... Rac8 {[%clk 0:01:46.4]} 22. a4
{[%clk 0:01:56.9]} 22... a5 {[%clk 0:01:39.6]} 23. bxa5 {[%clk 0:01:56]} 23...
c5 {[%clk 0:01:39.6]} 24. Qb5 {[%clk 0:01:54.3]} 24... Qxb5 {[%clk 0:01:25.2]}
25. axb5 {[%clk 0:01:55.2]} 25... cxd4 {[%clk 0:01:25.5]} 26. b6 {[%clk
0:01:52.8]} 26... Bb8 {[%clk 0:01:23]} 27. Nxd4 {[%clk 0:01:51.7]} 27... Bxe5
{[%clk 0:01:19.2]} 28. Nb5 {[%clk 0:01:51.3]} 28... Rxc1 {[%clk 0:01:10.3]} 29.
Rxc1 {[%clk 0:01:48.4]} 29... d4 {[%clk 0:01:09.1]} 30. g3 {[%clk 0:01:42.3]}
30... d3 {[%clk 0:01:04.6]} 31. Rc5 {[%clk 0:01:41.3]} 31... Rd8 {[%clk
0:01:01.5]} 32. Kg2 {[%clk 0:01:32.7]} 32... Bb8 {[%clk 0:00:41.9]} 33. f4
{[%clk 0:01:29.1]} 33... Nf8 {[%clk 0:00:40.2]} 34. Kf3 {[%clk 0:01:26.5]} 34...
Ne6 {[%clk 0:00:38.5]} 35. Rc4 {[%clk 0:01:23.8]} 35... f5 {[%clk 0:00:36.5]}
36. Ke3 {[%clk 0:01:20.1]} 36... g5 {[%clk 0:00:33]} 37. Nc7 {[%clk 0:00:46.5]}
37... Kf7 {[%clk 0:00:30.8]} 38. Nxe6 {[%clk 0:00:33.1]} 38... Kxe6 {[%clk
0:00:29.6]} 39. Rd4 {[%clk 0:00:33.4]} 39... gxf4+ {[%clk 0:00:28.4]} 40. gxf4
{[%clk 0:00:32.8]} 40... Rg8 {[%clk 0:00:07.2]} 41. Rxd3 {[%clk 0:00:29.9]}
41... Rg3+ {[%clk 0:00:04.8]} 42. Kd4 {[%clk 0:00:30]} 1-0

[Event "*** Titled Tuesday Blitz"]
[Site "Chess.com"]
[Date "2020.04.14"]
[Round "5"]
[White "bmt011"]
[Black "mirochka"]
[Result "1-0"]
[WhiteElo "2011"]
[BlackElo "2210"]
[TimeControl "180+1"]
[EndTime "10:51:30 PDT"]
[Termination "bmt011 won by resignation"]

1. d4 {[%clk 0:03:00.9]} 1... Nf6 {[%clk 0:02:59]} 2. Bf4 {[%clk 0:02:59.7]}
2... d5 {[%clk 0:02:55.1]} 3. Nf3 {[%clk 0:02:57.4]} 3... g6 {[%clk 0:02:53.6]}
4. e3 {[%clk 0:02:54.1]} 4... Bg7 {[%clk 0:02:53.5]} 5. h3 {[%clk 0:02:53.4]}
5... O-O {[%clk 0:02:53.1]} 6. Be2 {[%clk 0:02:50.6]} 6... c5 {[%clk 0:02:52.7]}
7. c3 {[%clk 0:02:47.8]} 7... Nc6 {[%clk 0:02:52.3]} 8. O-O {[%clk 0:02:46.1]}
8... Nd7 {[%clk 0:02:48.9]} 9. Nbd2 {[%clk 0:02:39.3]} 9... e5 {[%clk
0:02:42.8]} 10. dxe5 {[%clk 0:02:39.8]} 10... Ndxe5 {[%clk 0:02:42.1]} 11. Nxe5
{[%clk 0:02:40.3]} 11... Nxe5 {[%clk 0:02:41.3]} 12. Nf3 {[%clk 0:02:40.7]}
12... Nc6 {[%clk 0:02:34.7]} 13. Qb3 {[%clk 0:02:32.8]} 13... b6 {[%clk
0:02:28.9]} 14. Rad1 {[%clk 0:02:20.3]} 14... Be6 {[%clk 0:02:28]} 15. Ng5
{[%clk 0:02:20.6]} 15... h6 {[%clk 0:02:19.9]} 16. Nxe6 {[%clk 0:02:19.7]} 16...
fxe6 {[%clk 0:02:20.4]} 17. c4 {[%clk 0:02:02.7]} 17... d4 {[%clk 0:01:50.2]}
18. Bf3 {[%clk 0:01:54.1]} 18... Rc8 {[%clk 0:01:49.6]} 19. Bxc6 {[%clk
0:01:49.9]} 19... Rxc6 {[%clk 0:01:48.5]} 20. Bg3 {[%clk 0:01:27.7]} 20... e5
{[%clk 0:01:44.2]} 21. exd4 {[%clk 0:01:22.6]} 21... exd4 {[%clk 0:01:43.5]} 22.
Qd3 {[%clk 0:01:17.8]} 22... Kh7 {[%clk 0:01:41.6]} 23. Rde1 {[%clk 0:01:17.7]}
23... Re8 {[%clk 0:01:32.3]} 24. Re4 {[%clk 0:01:14.1]} 24... Rce6 {[%clk
0:01:30.9]} 25. f3 {[%clk 0:01:07.4]} 25... Rxe4 {[%clk 0:01:26.2]} 26. fxe4
{[%clk 0:01:06.8]} 26... Qe7 {[%clk 0:01:22.7]} 27. h4 {[%clk 0:01:03.7]} 27...
Qxe4 {[%clk 0:01:18.5]} 28. Qxe4 {[%clk 0:00:58.2]} 28... Rxe4 {[%clk
0:01:18.8]} 29. Rf7 {[%clk 0:00:58.9]} 29... a5 {[%clk 0:01:16.5]} 30. Bc7
{[%clk 0:00:54.9]} 30... d3 {[%clk 0:01:13.9]} 31. Rd7 {[%clk 0:00:54.6]} 31...
Rd4 {[%clk 0:01:12.1]} 32. Rxd4 {[%clk 0:00:51.2]} 32... Bxd4+ {[%clk
0:01:10.9]} 33. Kf1 {[%clk 0:00:49.6]} 33... Bxb2 {[%clk 0:01:10.5]} 34. Bxb6
{[%clk 0:00:48.8]} 34... a4 {[%clk 0:01:02.8]} 35. Bxc5 {[%clk 0:00:47.8]} 35...
Kg7 {[%clk 0:01:00.6]} 36. Kf2 {[%clk 0:00:47.5]} 36... Kf6 {[%clk 0:01:00.4]}
37. Ke3 {[%clk 0:00:47.3]} 37... Kf5 {[%clk 0:00:59.5]} 38. Kxd3 {[%clk
0:00:42.7]} 38... Kg4 {[%clk 0:00:59.4]} 39. Be3 {[%clk 0:00:35.6]} 39... Kxh4
{[%clk 0:00:55.9]} 40. Bxh6 {[%clk 0:00:34.9]} 40... Kg3 {[%clk 0:00:55]} 41.
Ke4 {[%clk 0:00:30.3]} 41... Kxg2 {[%clk 0:00:51.6]} 42. c5 {[%clk 0:00:30.4]}
42... Bc3 {[%clk 0:00:41.7]} 43. c6 {[%clk 0:00:29.2]} 43... Ba5 {[%clk
0:00:41]} 44. Bf4 {[%clk 0:00:29.4]} 44... g5 {[%clk 0:00:39.7]} 45. Bxg5 {[%clk
0:00:25.1]} 45... Kf2 {[%clk 0:00:38.8]} 46. Bf4 {[%clk 0:00:23.6]} 46... Ke2
{[%clk 0:00:38.8]} 47. Kd4 {[%clk 0:00:24.1]} 47... Kd1 {[%clk 0:00:38.3]} 48.
a3 {[%clk 0:00:20.5]} 48... Kc2 {[%clk 0:00:38]} 49. Kc4 {[%clk 0:00:20.4]}
49... Kb2 {[%clk 0:00:30.9]} 50. Bd6 {[%clk 0:00:20.2]} 50... Bd8 {[%clk
0:00:19]} 51. Kb5 {[%clk 0:00:20.5]} 51... Kb3 {[%clk 0:00:18.4]} 52. Ka6 {[%clk
0:00:20.6]} 52... Ka2 {[%clk 0:00:16.4]} 53. Kb7 {[%clk 0:00:21]} 53... Kb3
{[%clk 0:00:16.3]} 54. c7 {[%clk 0:00:21.4]} 54... Bxc7 {[%clk 0:00:16.1]} 55.
Kxc7 {[%clk 0:00:21.6]} 1-0

[Event "*** Titled Tuesday Blitz"]
[Site "Chess.com"]
[Date "2020.04.14"]
[Round "5"]
[White "Yeytruyol"]
[Black "hongnhung1234"]
[Result "1-0"]
[WhiteElo "2393"]
[BlackElo "2129"]
[TimeControl "180+1"]
[EndTime "10:51:30 PDT"]
[Termination "Yeytruyol won by checkmate"]

1. e4 {[%clk 0:03:00.9]} 1... c5 {[%clk 0:02:59.4]} 2. d4 {[%clk 0:02:59.4]}
2... cxd4 {[%clk 0:03:00.3]} 3. c3 {[%clk 0:02:57.3]} 3... Nf6 {[%clk
0:03:00.4]} 4. e5 {[%clk 0:02:55.5]} 4... Nd5 {[%clk 0:03:00.5]} 5. Nf3 {[%clk
0:02:53.5]} 5... Nc6 {[%clk 0:03:00.5]} 6. cxd4 {[%clk 0:02:46.8]} 6... e6
{[%clk 0:03:00.6]} 7. a3 {[%clk 0:02:43]} 7... d6 {[%clk 0:03:00.2]} 8. Bd3
{[%clk 0:02:39.5]} 8... dxe5 {[%clk 0:02:58.1]} 9. dxe5 {[%clk 0:02:40.4]} 9...
Be7 {[%clk 0:02:54.5]} 10. O-O {[%clk 0:02:39.6]} 10... O-O {[%clk 0:02:54.6]}
11. Re1 {[%clk 0:02:31.6]} 11... b6 {[%clk 0:02:51.9]} 12. Qc2 {[%clk
0:02:31.4]} 12... Bb7 {[%clk 0:02:42.2]} 13. Bxh7+ {[%clk 0:02:30.5]} 13... Kh8
{[%clk 0:02:42.6]} 14. Nc3 {[%clk 0:02:24.5]} 14... Nxc3 {[%clk 0:02:31.5]} 15.
bxc3 {[%clk 0:02:23.5]} 15... g6 {[%clk 0:01:55.1]} 16. Bxg6 {[%clk 0:02:21.6]}
16... fxg6 {[%clk 0:01:56]} 17. Qxg6 {[%clk 0:02:21.6]} 17... Qe8 {[%clk
0:01:56]} 18. Qh6+ {[%clk 0:02:12.7]} 18... Kg8 {[%clk 0:01:54.7]} 19. Re4
{[%clk 0:02:13.4]} 19... Nxe5 {[%clk 0:01:36.2]} 20. Rxe5 {[%clk 0:02:03.9]}
20... Bxf3 {[%clk 0:01:31.7]} 21. gxf3 {[%clk 0:01:54.2]} 21... Rf7 {[%clk
0:01:23.8]} 22. Bg5 {[%clk 0:01:05.8]} 22... Rg7 {[%clk 0:01:18.9]} 23. Qxe6+
{[%clk 0:01:02.3]} 23... Kh8 {[%clk 0:01:10.1]} 24. Qh6+ {[%clk 0:00:48.2]}
24... Kg8 {[%clk 0:01:09.7]} 25. Qxg7+ {[%clk 0:00:48.2]} 25... Kxg7 {[%clk
0:01:09.7]} 26. Rxe7+ {[%clk 0:00:48.6]} 26... Qxe7 {[%clk 0:01:10.1]} 27. Bxe7
{[%clk 0:00:49]} 27... Kf7 {[%clk 0:01:10.6]} 28. Bh4 {[%clk 0:00:45.3]} 28...
Rc8 {[%clk 0:01:09.6]} 29. Rc1 {[%clk 0:00:42.8]} 29... Rc4 {[%clk 0:01:09.1]}
30. Bg3 {[%clk 0:00:41.8]} 30... Ke6 {[%clk 0:01:09]} 31. h4 {[%clk 0:00:37.9]}
31... Kf5 {[%clk 0:01:07.9]} 32. f4 {[%clk 0:00:29.2]} 32... Kg4 {[%clk
0:01:06.4]} 33. Kg2 {[%clk 0:00:29.6]} 33... Ra4 {[%clk 0:01:05.7]} 34. Re1
{[%clk 0:00:28]} 34... Kf5 {[%clk 0:01:00]} 35. Re5+ {[%clk 0:00:28.3]} 35...
Kf6 {[%clk 0:00:59.9]} 36. h5 {[%clk 0:00:27.3]} 36... Rxa3 {[%clk 0:00:59.2]}
37. Rg5 {[%clk 0:00:25.3]} 37... Rxc3 {[%clk 0:00:57.4]} 38. h6 {[%clk
0:00:25.4]} 38... Rc7 {[%clk 0:00:55]} 39. f5 {[%clk 0:00:21.6]} 39... Rh7
{[%clk 0:00:50]} 40. Rh5 {[%clk 0:00:21.6]} 40... a5 {[%clk 0:00:47.4]} 41. Kf3
{[%clk 0:00:21.8]} 41... b5 {[%clk 0:00:47.2]} 42. Ke4 {[%clk 0:00:21.8]} 42...
a4 {[%clk 0:00:47.2]} 43. Be5+ {[%clk 0:00:22.1]} 43... Ke7 {[%clk 0:00:47.4]}
44. f6+ {[%clk 0:00:17]} 44... Ke6 {[%clk 0:00:46.4]} 45. Rg5 {[%clk 0:00:16.4]}
45... Rxh6 {[%clk 0:00:27.7]} 46. Rg7 {[%clk 0:00:17.3]} 46... Rh4+ {[%clk
0:00:27.5]} 47. f4 {[%clk 0:00:18]} 47... Rxf4+ {[%clk 0:00:26]} 48. Kxf4 {[%clk
0:00:17.5]} 48... a3 {[%clk 0:00:23.8]} 49. Ra7 {[%clk 0:00:18.4]} 49... b4
{[%clk 0:00:23.5]} 50. Ra4 {[%clk 0:00:18.9]} 50... a2 {[%clk 0:00:20.9]} 51.
Rxa2 {[%clk 0:00:18.9]} 51... b3 {[%clk 0:00:21]} 52. Rb2 {[%clk 0:00:19.8]}
52... Kf7 {[%clk 0:00:21.3]} 53. Rxb3 {[%clk 0:00:20.7]} 53... Kg6 {[%clk
0:00:21.6]} 54. Rb7 {[%clk 0:00:20.8]} 54... Kh5 {[%clk 0:00:21.8]} 55. Rg7
{[%clk 0:00:21.4]} 55... Kh6 {[%clk 0:00:21.9]} 56. f7 {[%clk 0:00:21.9]} 56...
Kh5 {[%clk 0:00:22.1]} 57. f8=Q {[%clk 0:00:21.6]} 57... Kh6 {[%clk 0:00:22.1]}
58. Qh8# {[%clk 0:00:22.5]} 1-0

[Event "*** Titled Tuesday Blitz"]
[Site "Chess.com"]
[Date "2020.04.14"]
[Round "5"]
[White "Mfcyryd"]
[Black "Tiqr777"]
[Result "1-0"]
[WhiteElo "2487"]
[BlackElo "2632"]
[TimeControl "180+1"]
[EndTime "10:51:31 PDT"]
[Termination "Mfcyryd won by resignation"]

1. e4 {[%clk 0:03:00.9]} 1... g6 {[%clk 0:02:59.8]} 2. d4 {[%clk 0:03:00.5]}
2... Bg7 {[%clk 0:02:59.5]} 3. Nc3 {[%clk 0:03:01]} 3... d6 {[%clk 0:02:59.9]}
4. Be3 {[%clk 0:03:00.8]} 4... Nc6 {[%clk 0:03:00.1]} 5. Qd2 {[%clk 0:02:59.5]}
5... e5 {[%clk 0:02:59.8]} 6. Nge2 {[%clk 0:02:59.3]} 6... Nf6 {[%clk
0:02:59.5]} 7. f3 {[%clk 0:02:58.4]} 7... O-O {[%clk 0:02:59.6]} 8. O-O-O {[%clk
0:02:53.1]} 8... a6 {[%clk 0:02:59.1]} 9. Kb1 {[%clk 0:02:50.7]} 9... b5 {[%clk
0:02:57.7]} 10. a3 {[%clk 0:02:39]} 10... Rb8 {[%clk 0:02:57.3]} 11. d5 {[%clk
0:02:33.7]} 11... Na5 {[%clk 0:02:49.3]} 12. Nc1 {[%clk 0:02:25]} 12... Nh5
{[%clk 0:02:49.2]} 13. g4 {[%clk 0:02:17.8]} 13... Nf4 {[%clk 0:02:48.9]} 14. h4
{[%clk 0:02:16]} 14... h6 {[%clk 0:02:44.5]} 15. Nxb5 {[%clk 0:02:09.5]} 15...
axb5 {[%clk 0:02:40.9]} 16. Qxa5 {[%clk 0:02:09.2]} 16... c5 {[%clk 0:02:37.6]}
17. Qxd8 {[%clk 0:02:03.6]} 17... Rxd8 {[%clk 0:02:38.1]} 18. Nd3 {[%clk
0:02:03]} 18... g5 {[%clk 0:02:27.4]} 19. Nxf4 {[%clk 0:01:36.7]} 19... exf4
{[%clk 0:02:26.3]} 20. Bd2 {[%clk 0:01:37.2]} 20... Bd7 {[%clk 0:01:54.5]} 21.
hxg5 {[%clk 0:01:33.4]} 21... hxg5 {[%clk 0:01:54.8]} 22. Rh5 {[%clk 0:01:29.9]}
22... Bf6 {[%clk 0:01:54.4]} 23. Be2 {[%clk 0:01:25.3]} 23... Kg7 {[%clk
0:01:47.7]} 24. Rdh1 {[%clk 0:01:18.3]} 24... Rh8 {[%clk 0:01:48]} 25. Rxh8
{[%clk 0:01:09.1]} 25... Rxh8 {[%clk 0:01:48.5]} 26. Rxh8 {[%clk 0:01:07.4]}
26... Kxh8 {[%clk 0:01:49.1]} 27. c4 {[%clk 0:01:05]} 27... bxc4 {[%clk
0:01:39.9]} 28. Bxc4 {[%clk 0:01:04.6]} 28... Kg8 {[%clk 0:01:40.3]} 29. Ba5
{[%clk 0:01:00.9]} 29... Kf8 {[%clk 0:01:38.9]} 30. b3 {[%clk 0:01:01]} 30...
Ke8 {[%clk 0:01:37.4]} 31. Bc7 {[%clk 0:00:58]} 31... Be5 {[%clk 0:01:33.9]} 32.
Kc2 {[%clk 0:00:53.5]} 32... Bc8 {[%clk 0:01:32.7]} 33. Bb5+ {[%clk 0:00:45.7]}
33... Bd7 {[%clk 0:01:32.9]} 34. Bc6 {[%clk 0:00:38.4]} 34... Ke7 {[%clk
0:01:12]} 35. a4 {[%clk 0:00:34.8]} 35... Bc8 {[%clk 0:01:11.7]} 36. Kd3 {[%clk
0:00:29.8]} 36... Ba6+ {[%clk 0:01:07.1]} 37. Bb5 {[%clk 0:00:29.1]} 37... Bxb5+
{[%clk 0:01:07.2]} 38. axb5 {[%clk 0:00:27]} 38... Kd7 {[%clk 0:01:07.9]} 39. b6
{[%clk 0:00:23.5]} 39... Kc8 {[%clk 0:01:03]} 40. Kc4 {[%clk 0:00:21]} 40... Kb7
{[%clk 0:01:03.3]} 41. Kb5 {[%clk 0:00:20.6]} 41... f6 {[%clk 0:01:03.6]} 42.
Bd8 {[%clk 0:00:16.3]} 42... Bc3 {[%clk 0:01:00.6]} 43. Be7 {[%clk 0:00:14]}
43... Be5 {[%clk 0:01:00.9]} 44. Bf8 {[%clk 0:00:12.9]} 44... Kc8 {[%clk
0:00:36.1]} 45. Kc6 {[%clk 0:00:12.3]} 45... Kb8 {[%clk 0:00:36.4]} 46. Bxd6+
{[%clk 0:00:11.5]} 46... Bxd6 {[%clk 0:00:37.2]} 47. Kxd6 {[%clk 0:00:12.2]}
47... c4 {[%clk 0:00:38.1]} 48. bxc4 {[%clk 0:00:12.3]} 48... Kb7 {[%clk
0:00:38]} 49. c5 {[%clk 0:00:11.6]} 49... f5 {[%clk 0:00:38.7]} 50. exf5 {[%clk
0:00:11]} 1-0

[Event "*** Titled Tuesday Blitz"]
[Site "Chess.com"]
[Date "2020.04.14"]
[Round "5"]
[White "sergeikim"]
[Black "Treacherous_horse64"]
[Result "1-0"]
[WhiteElo "2371"]
[BlackElo "2204"]
[TimeControl "180+1"]
[EndTime "10:51:31 PDT"]
[Termination "sergeikim won by checkmate"]

1. d4 {[%clk 0:03:00.9]} 1... d5 {[%clk 0:02:59.5]} 2. c4 {[%clk 0:03:00.9]}
2... e6 {[%clk 0:02:58.6]} 3. Nc3 {[%clk 0:03:00.8]} 3... Nf6 {[%clk 0:02:57.6]}
4. Nf3 {[%clk 0:03:00.8]} 4... dxc4 {[%clk 0:02:56.2]} 5. e3 {[%clk 0:03:00.2]}
5... a6 {[%clk 0:02:55.5]} 6. Bxc4 {[%clk 0:03:00.1]} 6... b5 {[%clk 0:02:55]}
7. Bb3 {[%clk 0:03:00]} 7... Bb7 {[%clk 0:02:53.1]} 8. O-O {[%clk 0:02:59.6]}
8... Nbd7 {[%clk 0:02:50.6]} 9. Qe2 {[%clk 0:02:59.4]} 9... c5 {[%clk
0:02:48.8]} 10. Rd1 {[%clk 0:02:59.7]} 10... cxd4 {[%clk 0:02:46.7]} 11. exd4
{[%clk 0:02:58.6]} 11... Nb6 {[%clk 0:02:31.6]} 12. Bg5 {[%clk 0:02:50.5]} 12...
Nbd5 {[%clk 0:02:17.4]} 13. Ne5 {[%clk 0:02:49.5]} 13... Be7 {[%clk 0:02:15.9]}
14. Rd3 {[%clk 0:02:46.9]} 14... Nxc3 {[%clk 0:02:10.3]} 15. bxc3 {[%clk
0:02:46.4]} 15... Nd5 {[%clk 0:02:04.8]} 16. Bd2 {[%clk 0:02:28]} 16... Bf6
{[%clk 0:01:43.8]} 17. Rg3 {[%clk 0:02:22.6]} 17... Qd6 {[%clk 0:01:34.6]} 18.
Re1 {[%clk 0:02:00.5]} 18... Rc8 {[%clk 0:01:20.8]} 19. Qh5 {[%clk 0:01:43]}
19... g6 {[%clk 0:01:15.9]} 20. Qh6 {[%clk 0:01:42.9]} 20... Qf8 {[%clk
0:01:10.1]} 21. Qh3 {[%clk 0:01:40.8]} 21... Qd6 {[%clk 0:01:03.7]} 22. Rf3
{[%clk 0:01:27.6]} 22... Bxe5 {[%clk 0:00:56.6]} 23. Rxe5 {[%clk 0:01:08.7]}
23... Ne7 {[%clk 0:00:37.3]} 24. Rxf7 {[%clk 0:00:40.7]} 24... Kxf7 {[%clk
0:00:23.9]} 25. Rxe6 {[%clk 0:00:40.8]} 25... Qd5 {[%clk 0:00:10.7]} 26. Bxd5
{[%clk 0:00:30.2]} 26... Bxd5 {[%clk 0:00:11.6]} 27. Rxa6 {[%clk 0:00:28.1]}
27... Nf5 {[%clk 0:00:09.8]} 28. Ra7+ {[%clk 0:00:24.4]} 28... Ke6 {[%clk
0:00:07.6]} 29. g4 {[%clk 0:00:21.7]} 29... Nd6 {[%clk 0:00:07.8]} 30. Qe3+
{[%clk 0:00:19.5]} 30... Be4 {[%clk 0:00:06.5]} 31. f3 {[%clk 0:00:17.7]} 31...
Ra8 {[%clk 0:00:04.8]} 32. Rxa8 {[%clk 0:00:15.9]} 32... Rxa8 {[%clk 0:00:05.7]}
33. fxe4 {[%clk 0:00:15.7]} 33... Rxa2 {[%clk 0:00:06.2]} 34. d5+ {[%clk
0:00:15.1]} 34... Kd7 {[%clk 0:00:06]} 35. Qd4 {[%clk 0:00:12]} 35... Nc4 {[%clk
0:00:05.4]} 36. Bf4 {[%clk 0:00:11]} 36... Ra1+ {[%clk 0:00:03.3]} 37. Kg2
{[%clk 0:00:11.2]} 37... Ra2+ {[%clk 0:00:03.7]} 38. Kg3 {[%clk 0:00:11.3]}
38... Re2 {[%clk 0:00:03.4]} 39. Qg7+ {[%clk 0:00:10.6]} 39... Kc8 {[%clk
0:00:03.2]} 40. Qc7# {[%clk 0:00:09.5]} 1-0